[Event "AI Cup Div-2 2023"]
[Site "Online"]
[Date "2023.09.25"]
[Round "1.3"]
[White "Andreikin, Dmitry"]
[Black "Antipov, Mikhail Al."]
[Result "1/2-1/2"]
[ECO "D85"]
[WhiteElo "2729"]
[BlackElo "2600"]
[Annotator "TA"]
[PlyCount "110"]
[EventDate "2023.09.18"]
[EventType "k.o."]
[EventCountry "NET"]
[SourceTitle "playchess.com"]
[Source "ChessBase"]
[SourceQuality "1"]
[TimeControl "900+3"]

{[%evp 19,110,0,0,0,0,0,0,0,0,0,8,0,0,0,1,0,0,0,0,0,0,0,0,0,0,0,0,0,0,-15,-8,-19,0,0,0,0,12,0,0,0,0,0,0,0,0,0,0,0,0,0,0,0,0,0,0,0,3,3,3,6,44,44,48,3,3,3,3,4,4,0,8,8,271,8,8,8,271,271,271,271,271,271,271,271,271,271,271,271,271,271,271,271,271]} 1. c4 {[%emt 0:00:12]} g6 {[%emt 0:00:08]} 2. d4 {[%emt 0:00:06]} Nf6 {[%emt 0:00:01]} 3. Nc3 {[%emt 0:00:01]} d5 {[%emt 0:00:01]} 4. cxd5 {[%emt 0:00:03]} Nxd5 {[%emt 0:00:00]} 5. e4 {[%emt 0:00:03]} Nxc3 {[%emt 0:00:01]} 6. bxc3 {[%emt 0:00:00]} Bg7 {[%emt 0:00:00]} 7. Nf3 {[%emt 0:00:04]} c5 {[%emt 0:00:02]} 8. Bb5+ {[%emt 0:00:01]} Nc6 {[%emt 0:00:01]} 9. O-O {[%emt 0:00:04]} O-O {[%emt 0:00:03]} 10. Bxc6 {[%emt 0:00:01]} bxc6 {[%emt 0:00:00]} 11. Qc2 {[%emt 0:00:01] D85: Exchange Grünfeld: Unusual White 7th moves and lines with 7 Nf3.} cxd4 {[%emt 0:00:28]} 12. cxd4 {[%emt 0:00:02][%cal Oc1e3]} Bg4 {[%emt 0:00:02]} 13. Ne5 {[%emt 0:00:01] The position is equal.} Qxd4 {[%emt 0:00:03]} 14. Bb2 {[%emt 0:00:02][%cal Bc1b2,Bb2e5,Be5c3][%mdl 32]} Qb4 {[%emt 0:00:04]} 15. Rab1 {[%emt 0:00:04]} Bxe5 {[%emt 0:00:06]} 16. Bxe5 {[%emt 0:00:01]} Qa5 {[%emt 0:00:01]} 17. Bc3 {[%emt 0:00:16]} Qc5 {[%emt 0:00:08]} 18. Qb2 {[%emt 0:00:10]} a5 {[%emt 0:00:11]} 19. Rfc1 {[%emt 0:00:07] [#] And now Bh8 would win.} Qd6 {[%emt 0:01:06]} 20. Be5 {[%emt 0:00:22]} Qd7 {[%emt 0:01:08]} 21. h3 {[%emt 0:00:53]} Be6 {[%emt 0:00:08]} 22. Rd1 {[%emt 0:00:09]} Qa7 {[%emt 0:00:16] [#]} 23. a3 $146 {[%emt 0:00:40]} ({Predecessor:} 23. Bd4 c5 24. Bg7 Rfb8 25. Qe5 Rxb1 26. Rxb1 Bxa2 27. Rb2 f6 28. Qc3 Kxg7 29. Rxa2 {0-1 Muradli,M (2523)-Sevian,S (2684) Chess.com Rapid Wk21 Swiss 2022 (5)}) 23... Rfd8 {[%emt 0:00:31]} 24. Qc3 {[%emt 0:00:22]} Rxd1+ {[%emt 0:01:00]} 25. Rxd1 {[%emt 0:00:00]} Qb6 {[%emt 0:00:06]} 26. Rc1 {[%emt 0:01:16]} Rc8 {[%emt 0:01:52]} 27. Bd4 {[%emt 0:00:08]} Qd8 {[%emt 0:00:44]} 28. Bc5 {[%emt 0:00:14]} f6 {[%emt 0:00:40]} 29. Rb1 {[%emt 0:00:07]} Kf7 {[%emt 0:00:23]} 30. e5 {[%emt 0:02:45]} Rb8 {[%emt 0:00:48]} 31. Rxb8 {[%emt 0:00:19]} Qxb8 {[%emt 0:00:00]} 32. exf6 {[%emt 0:00:01]} exf6 {[%emt 0:00:51]} 33. Qxa5 $11 {[%emt 0:00:03][%mdl 4096] Endgame KQB-KQB} Qb1+ {[%emt 0:00:02]} 34. Kh2 {[%emt 0:00:02]} Qb8+ {[%emt 0:00:00]} 35. Kg1 {[%emt 0:00:06]} Qb1+ {[%emt 0:00:02]} 36. Kh2 {[%emt 0:00:00] Threatening mate with Qc7+.} Qb8+ {[%emt 0:00:00]} 37. g3 {[%emt 0:00:25]} Bd5 {[%emt 0:00:06]} 38. a4 {[%emt 0:00:25]} h5 {[%emt 0:01:39]} 39. Qe1 {[%emt 0:01:22] Threatening a5.} Qe8 {[%emt 0:00:24]} 40. Qxe8+ {[%emt 0:00:10]} Kxe8 $14 {[%emt 0:00:01] KB-KB} 41. g4 {[%emt 0:00:12]} (41. a5 $5 {[%cal Ra5a6]} Kd8 42. a6 $14) 41... hxg4 {[%emt 0:00:05]} 42. hxg4 {[%emt 0:00:00]} Kd7 {[%emt 0:00:08]} 43. Kg3 {[%emt 0:00:02]} Kc7 {[%emt 0:00:07]} 44. Kf4 {[%emt 0:00:05] Strongly threatening Bd4.} Be6 {[%emt 0:00:20]} 45. Be7 {[%emt 0:00:06]} g5+ $2 {[%emt 0:00:34][%mdl 8192]} (45... Kb6 $11 {and Black stays safe.}) 46. Ke4 $2 {[%emt 0:00:09]} (46. Kg3 $18) 46... Bxg4 $11 {[%emt 0:00:02]} 47. Bxf6 {[%emt 0:00:02]} Kb7 $2 {[%emt 0:00:01][%mdl 8192]} (47... Kb6 $11 {and Black is okay.}) 48. Bxg5 $18 {[%emt 0:00:02] White has a decisive advantage.} c5 {[%emt 0:00:01]} 49. Bd2 {[%emt 0:00:03]} Bd7 {[%emt 0:00:02]} 50. a5 {[%emt 0:00:01]} Ka8 {[%emt 0:00:02]} 51. f4 {[%emt 0:00:00]} Bc8 {[%emt 0:00:02]} 52. f5 {[%emt 0:00:01]} Bxf5+ {[%emt 0:00:00]} 53. Kxf5 {[%emt 0:00:00]} c4 {[%emt 0:00:01] [#]} 54. Ke5 $1 {[%emt 0:00:00]} c3 {[%emt 0:00:00]} 55. Bxc3 {[%emt 0:00:01]} Kb7 {[%emt 0:00:02][%mdl 32768] Weighted Error Value: White=0.13 (very precise) /Black=0.23 (precise) . An unexpected result.} 1/2-1/2

[Event "AI Cup Div-2 2023"]
[Site "Online"]
[Date "2023.09.25"]
[Round "1.3"]
[White "Duda, Jan-Krzysztof"]
[Black "Niemann, Hans Moke"]
[Result "0-1"]
[ECO "E11"]
[WhiteElo "2726"]
[BlackElo "2667"]
[Annotator "TA"]
[PlyCount "128"]
[EventDate "2023.09.18"]
[EventType "k.o."]
[EventCountry "NET"]
[SourceTitle "playchess.com"]
[Source "ChessBase"]
[SourceQuality "1"]
[TimeControl "900+3"]

{[%evp 9,128,14,26,5,11,6,18,22,11,0,0,0,0,0,0,0,-7,0,-8,-22,-21,-32,22,-16,0,0,0,0,0,0,35,0,0,0,0,0,57,56,52,20,8,15,45,33,121,0,136,38,95,-62,-73,-32,0,28,52,90,242,-179,-212,-174,-173,-913,-852,-1717,-1841,-1848,-1702,-6913,-4620,-29979,-29980,-29980,-29981,-29976,-12837,-29982,-29983,-29987,0,-2865,-2591,-29984,-29981,-5285,-1333,-2235,0,-2355,-1849,-6467,-1529,-1662,-1653,-2133,-1570,-1343,-1508,-1545,-1570,-12832,-6165,-12842,-12842,-12843,-12843,-12843,-12843,-12844,-12844,-12845,-12845,-12845,-12845,-12845,-12846,-12847,-12847,-12847,-12847,-12849,-12848]} 1. d4 {[%emt 0:00:10]} Nf6 {[%emt 0:00:06]} 2. c4 {[%emt 0:00:01]} e6 {[%emt 0:00:07]} 3. Nf3 {[%emt 0:00:04]} d5 {[%emt 0:00:02]} 4. g3 {[%emt 0:00:01]} Bb4+ {[%emt 0:00:01]} 5. Bd2 {[%emt 0:00:02]} a5 {[%emt 0:00:01]} 6. Qc1 {[%emt 0:00:20] E11: Bogo-Indian.} O-O {[%emt 0:00:03]} 7. Bg2 {[%emt 0:00:03]} Be7 {[%emt 0:00:02]} 8. O-O {[%emt 0:00:04] The position is equal.} c6 {[%emt 0:00:00]} 9. Bg5 {[%emt 0:00:11]} Nbd7 {[%emt 0:00:08]} 10. Rd1 {[%emt 0:00:15] [#]} h6 $146 {[%emt 0:00:04]} ({Predecessor:} 10... b6 11. Bxf6 Bxf6 12. cxd5 cxd5 13. Nc3 Ba6 14. a4 Rc8 15. Qf4 Qc7 16. e3 Be7 {1-0 Muradli,M (2552)-Atakishiyev,E (2271) Abu Dhabi Masters 28th 2022 (3)}) 11. Bf4 {[%emt 0:00:10]} g5 {[%emt 0:00:28]} 12. Bd2 {[%emt 0:00:07]} Ne4 {[%emt 0:00:02]} 13. Ne1 {[%emt 0:00:18]} f5 {[%emt 0:00:14]} 14. Nd3 {[%emt 0:00:09]} Bf6 {[%emt 0:00:04]} 15. e3 {[%emt 0:00:14]} h5 {[%emt 0:00:10]} (15... Qe7 $15) 16. f3 {[%emt 0:01:12]} Nd6 {[%emt 0:00:06]} 17. c5 {[%emt 0:00:29]} Nf7 {[%emt 0:00:20]} 18. f4 {[%emt 0:00:08]} h4 {[%emt 0:00:01]} 19. Nc3 {[%emt 0:00:11]} Kg7 {[%emt 0:00:07]} 20. gxh4 {[%emt 0:00:39]} g4 {[%emt 0:00:05]} 21. Be1 {[%emt 0:00:05]} Rh8 {[%emt 0:00:24]} 22. Bg3 {[%emt 0:00:13]} Nf8 {[%emt 0:00:02]} (22... b6 $11) 23. Na4 $14 {[%emt 0:00:09]} Nd7 {[%emt 0:00:26]} 24. a3 {[%emt 0:00:07]} (24. Kf2 {looks sharper.} Bxh4 25. Rh1 Rh6 26. Qc3) 24... Bxh4 {[%emt 0:00:04]} 25. Qc3 {[%emt 0:00:42]} Nf6 {[%emt 0:00:15]} 26. Qe1 {[%emt 0:01:15]} Ne4 {[%emt 0:00:09]} ({Black should play} 26... Bxg3 $14 27. Qxg3 Ra6) 27. Nb6 {[%emt 0:00:22]} ({White should try} 27. Bxh4 $16 Rxh4 28. Nb6) 27... Rb8 {[%emt 0:00:12]} (27... Bxg3 $11 {keeps the balance.} 28. hxg3 Ra6) 28. Bxe4 {[%emt 0:00:06]} (28. Qxa5 Bxg3 29. hxg3 Qf6 $17) ({Only move:} 28. Bxh4 $16 Rxh4 29. Bxe4 (29. Qxa5 Qh8 $17) 29... dxe4 30. Ne5) 28... Bxg3 $1 {[%emt 0:01:00]} 29. hxg3 {[%emt 0:00:24]} (29. Qxg3 $16 dxe4 30. Ne5) 29... fxe4 $15 {[%emt 0:00:11]} 30. Nf2 {[%emt 0:00:41]} Nh6 {[%emt 0:00:39]} (30... e5 $15) 31. Kg2 $11 {[%emt 0:00:10] Qe2 is the strong threat.} (31. Qxa5 Nf5 32. Qa7 (32. Nxg4 Nxg3 33. Nh2 e5 $19) 32... Bd7 33. Nxg4 Nxg3 $17) 31... e5 {[%emt 0:00:16]} 32. dxe5 {[%emt 0:00:15]} (32. Qxa5 $2 exf4 33. exf4 e3 $19) 32... Be6 $2 {[%emt 0:00:26] [#]} (32... Nf5 $16) 33. Nc4 $4 {[%emt 0:03:43][%mdl 8192]} (33. Qxa5 Nf5 34. Re1 d4 $17) (33. Nxe4 $1 $18 {Qe2 would be deadly.} Qe7 34. Nd6) 33... Nf5 $19 {[%emt 0:00:54]} 34. Nd6 {[%emt 0:00:32][%cal Of2e4]} Nxg3 {[%emt 0:00:29][%mdl 64] Threatens to win with ...Qh4. Decoy} 35. Ndxe4 $2 {[%emt 0:00:39] [#]} ({Much weaker is} 35. Nxg4 Rh4 36. Qxg3 Rxg4 $19) (35. Qc3) 35... Qh4 $1 {[%emt 0:00:20][%csl Gh8][%cal Rh4h2][%mdl 64] Zwischenzug} 36. Nxg3 {[%emt 0:00:05]} (36. Qh1 Nxh1) 36... Qh2+ {[%emt 0:00:01][%mdl 64] Deflection} 37. Kf1 {[%emt 0:00:00]} Qxg3 {[%emt 0:00:01]} 38. Ke2 {[%emt 0:00:32] White is weak on the light squares} Rh2 {[%emt 0:00:43]} 39. Rd2 {[%emt 0:00:15] [#]} d4 $1 {[%emt 0:00:58][%mdl 512]} 40. Rxd4 {[%emt 0:00:33]} Qf3+ {[%emt 0:00:04][%mdl 64] Deflection} 41. Kd3 {[%emt 0:00:00]} Rxf2 {[%emt 0:00:02]} 42. Rd1 {[%emt 0:00:19]} Bf5+ {[%emt 0:00:17]} 43. Kc4 {[%emt 0:00:05]} Be6+ {[%emt 0:00:51]} (43... Rd8 $142 44. Kb3 a4+ 45. Ka2 Be6+ 46. Kb1 Rxd4 47. Rxd4 Rf1 48. Rd1 Rxe1 49. Rxe1 g3 50. Rg1 Qe4+ 51. Ka1 Qxe3 52. Rd1 Qb3 53. Rd7+ Bxd7 54. f5 Qd1+ 55. Ka2 Bxf5 56. b4 Qb1#) 44. Kd3 {[%emt 0:00:09]} g3 {[%emt 0:00:02]} 45. Rd6 {[%emt 0:00:35]} Bf5+ {[%emt 0:00:07]} 46. Kc3 {[%emt 0:00:28]} Qe4 {[%emt 0:00:03]} (46... Re2 $142 47. Kb3 Rxe1 48. Rxe1 Qf2) 47. R1d2 {[%emt 0:00:07]} Qf3 $2 {[%emt 0:00:22]} (47... Rh8 $19 {( -> ...Rh1)} 48. Rd7+ Bxd7 49. Rxd7+ Kf8) 48. e6 $2 {[%emt 0:00:04][%mdl 8192]} (48. Rd1 $11 Re2 49. Kb3 Rxe3+ 50. Ka2 Rxe1 51. Rxe1 Qxf4 52. e6) 48... Re8 {[%emt 0:00:19] Black is clearly winning.} 49. b4 {[%emt 0:00:01]} axb4+ {[%emt 0:00:03]} (49... Rf1 $142 50. Qe2 Rc1+ 51. Kb3 Rb1+ {[%mdl 64] Skewer, Deflection} 52. Ka2 axb4) 50. Kxb4 {[%emt 0:00:00]} Rf1 {[%emt 0:00:07]} ({Not} 50... Rxe6 51. Qa1+ Kg6 52. Qe5 $11) 51. Qe2 {[%emt 0:00:01]} Qxe2 {[%emt 0:00:03]} 52. Rxe2 {[%emt 0:00:00]} Rf2 {[%emt 0:00:05][%cal Bf1f2,Bf2b2,Bb2g2,Bg2d2][%mdl 32]} 53. Re1 {[%emt 0:00:09]} g2 {[%emt 0:00:02] And now ...Rf1 would win.} 54. Rg1 {[%emt 0:00:04]} Rxe6 {[%emt 0:00:03]} 55. Ka5 {[%emt 0:00:02]} Rb2 {[%emt 0:00:25]} 56. a4 {[%emt 0:00:04] Against Rb5+} Rxd6 {[%emt 0:00:06]} 57. cxd6 {[%emt 0:00:00]} Bc8 {[%emt 0:00:02][%csl Gb2][%cal Rb7b6]} 58. Rxg2+ {[%emt 0:00:03]} Rxg2 {[%emt 0:00:02][%mdl 4096] Endgame} 59. Kb6 {[%emt 0:00:00]} Rd2 {[%emt 0:00:02]} 60. Kc7 {[%emt 0:00:02]} Bf5 {[%emt 0:00:02]} 61. e4 {[%emt 0:00:01]} Bxe4 {[%emt 0:00:01]} 62. d7 {[%emt 0:00:01]} c5 {[%emt 0:00:02][%cal Bc6c5,Bc5c4][%mdl 32]} 63. d8=Q {[%emt 0:00:01]} Rxd8 {[%emt 0:00:03]} 64. Kxd8 {[%emt 0:00:00]} c4 {[%emt 0:00:01] An interesting game.   Weighted Error Value: White=1.12/Black=0.70} 0-1

[Event "AI Cup Div-2 2023"]
[Site "Online"]
[Date "2023.09.25"]
[Round "1.3"]
[White "Keymer, Vincent"]
[Black "Hakobyan, Aram"]
[Result "1-0"]
[ECO "D38"]
[WhiteElo "2717"]
[BlackElo "2617"]
[Annotator "TA"]
[PlyCount "129"]
[EventDate "2023.09.18"]
[EventType "k.o."]
[EventCountry "NET"]
[SourceTitle "playchess.com"]
[Source "ChessBase"]
[SourceQuality "1"]
[TimeControl "900+3"]

{[%evp 19,129,0,0,0,0,-20,0,0,0,0,13,0,0,0,0,0,0,0,0,0,7,-4,16,13,19,14,14,7,14,18,11,6,22,9,46,46,46,35,51,50,53,58,57,57,60,57,58,45,83,82,82,82,82,82,82,82,112,112,112,112,112,112,112,105,119,112,113,112,169,125,184,184,184,184,184,77,169,77,169,77,5625,5100,29968,29969,29968,29967,29976,29977,29977,29978,29978,29978,29978,29979,29979,29980,29980,29981,29981,29982,29982,29983,29983,29983,29984,29985,29985,29986,29986,29986,29986,29987]} 1. d4 {[%emt 0:00:07]} Nf6 {[%emt 0:00:12]} 2. c4 {[%emt 0:00:03]} e6 {[%emt 0:00:01]} 3. Nf3 {[%emt 0:00:00]} d5 {[%emt 0:00:02]} 4. Nc3 {[%emt 0:00:01]} Bb4 {[%emt 0:00:01]} 5. cxd5 {[%emt 0:00:38]} exd5 {[%emt 0:00:03]} 6. Qa4+ {[%emt 0:00:13]} Nc6 {[%emt 0:00:03]} 7. Bg5 {[%emt 0:00:01]} h6 {[%emt 0:00:06]} 8. Bxf6 {[%emt 0:00:02]} Qxf6 {[%emt 0:00:00]} 9. e3 {[%emt 0:00:00]} O-O {[%emt 0:00:05]} 10. Be2 {[%emt 0:00:08] 10.Rc1 deserves study.} Rd8 {[%emt 0:00:15]} 11. O-O {[%emt 0:00:59] D38: Queen's Gambit Declined: Ragozin Defence (4 Nf3 Bb4).} Bf8 {[%emt 0:00:05]} 12. Nb5 $5 {[%emt 0:02:15][%mdl 4] A promising side line.} Qe7 {[%emt 0:01:43] [#]} 13. Rfc1 $146 {[%emt 0:01:16] The position is equal.} ({Predecessor:} 13. Rac1 a6 14. Nc3 Be6 15. a3 Rab8 16. Qc2 Na7 17. Na4 Nb5 18. Nc5 Bg4 19. h3 {0-1 Vahidov,T (2446)-Aleksandrov,A (2554) Wch Rapid Dubai 2014 (8)}) 13... a6 {[%emt 0:07:11]} 14. Nc3 {[%emt 0:00:03]} Be6 {[%emt 0:00:10]} 15. Ne1 {[%emt 0:00:12]} Na7 {[%emt 0:00:27]} 16. Nd3 {[%emt 0:00:17]} c6 {[%emt 0:00:00]} 17. Nc5 {[%emt 0:00:33]} Nb5 {[%emt 0:00:02]} 18. Nxe6 {[%emt 0:00:51]} Qxe6 {[%emt 0:00:03]} 19. Qc2 {[%emt 0:00:02]} Re8 {[%emt 0:00:16]} 20. g3 {[%emt 0:00:31]} Nxc3 {[%emt 0:00:17]} 21. bxc3 {[%emt 0:00:07]} Ba3 {[%emt 0:00:03]} 22. Re1 {[%emt 0:00:07]} b5 {[%emt 0:00:15]} 23. Bd3 {[%emt 0:00:21][%cal Be2d3,Bd3e4,Be4f3][%mdl 32]} Qd6 {[%emt 0:00:27]} 24. e4 {[%emt 0:00:06]} dxe4 {[%emt 0:00:01]} 25. Bxe4 {[%emt 0:00:10]} Re7 {[%emt 0:00:03]} 26. Bf3 {[%emt 0:01:06]} Rae8 {[%emt 0:00:16]} 27. Rxe7 {[%emt 0:00:03]} Rxe7 {[%emt 0:00:00]} 28. Qb3 {[%emt 0:00:01] Against c5} b4 {[%emt 0:01:28]} 29. Rd1 {[%emt 0:01:28]} bxc3 {[%emt 0:00:13]} 30. Qxc3 {[%emt 0:00:20]} Bb4 {[%emt 0:00:02]} 31. Qc4 {[%emt 0:00:02]} Re1+ {[%emt 0:01:23]} 32. Rxe1 {[%emt 0:00:33]} Bxe1 $14 {[%emt 0:00:00][%mdl 4096] Endgame KQB-KQB} 33. Kg2 {[%emt 0:03:05]} (33. Qxa6 {keeps more tension.} Qxd4 34. Qc8+ Kh7 35. Qf5+) 33... Qf6 {[%emt 0:00:32]} 34. Qxa6 {[%emt 0:00:11]} (34. Bxc6 Qxf2+ 35. Kh3 h5 $15) 34... Qxd4 {[%emt 0:00:07]} 35. Qe2 {[%emt 0:00:04]} ({Of course not} 35. Qxc6 $6 Qxf2+ 36. Kh3 Qf1+ 37. Bg2 Qf5+ 38. g4 Qd3+ 39. Qf3 Qd2 $11) (35. Qc8+ {is more complex.} Kh7 36. Qf5+ Kg8 37. Bxc6 g6 38. Qf3) 35... Bb4 {[%emt 0:00:16]} 36. Qe8+ {[%emt 0:00:02]} Bf8 {[%emt 0:00:02]} 37. Bxc6 {[%emt 0:00:05]} g6 {[%emt 0:00:13]} 38. a4 {[%emt 0:00:07][%cal Ba2a4,Ba4a5,Ba5a6][%mdl 32]} Kg7 {[%emt 0:00:02]} 39. a5 {[%emt 0:00:10]} Bc5 {[%emt 0:00:03]} 40. Qe2 {[%emt 0:00:02] Active counter play!} Ba7 {[%emt 0:00:05]} 41. a6 {[%emt 0:00:06]} Bc5 {[%emt 0:00:04]} 42. h4 {[%emt 0:00:13]} Qf6 {[%emt 0:00:07]} 43. Bd5 {[%emt 0:00:08]} h5 {[%emt 0:00:05]} (43... Ba7 $16 44. Qa2 g5) 44. Qf3 {[%emt 0:00:04]} Ba7 {[%emt 0:00:17] [#]} (44... Qxf3+ $16 {was necessary.} 45. Kxf3 Kf8) 45. Qxf6+ $1 $18 {[%emt 0:00:03]} Kxf6 {[%emt 0:00:00] KB-KB} 46. f4 {[%emt 0:00:01]} Ke7 {[%emt 0:00:12] [#]} 47. Kf3 {[%emt 0:00:01]} (47. f5 $1 $18 {is the precise move to win.}) 47... f6 {[%emt 0:00:02]} (47... f5 $16 {might work better.}) 48. Be4 {[%emt 0:00:02]} (48. g4 $18 {has better winning chances. Strongly threatening f5.} hxg4+ 49. Kxg4) 48... Kf7 {[%emt 0:00:01]} (48... f5 $16 49. Bd5 Bd4) 49. Ke2 {[%emt 0:00:05]} (49. g4 $18 {is more deadly.}) 49... Kg7 $2 {[%emt 0:00:04][%mdl 8192] Loses the game.} (49... f5 $16 50. Bc6 Ke7) 50. Kd3 {[%emt 0:00:04]} Kh6 {[%emt 0:00:04]} 51. Kc4 {[%emt 0:00:10] White mates.} g5 {[%emt 0:00:01]} 52. f5 {[%emt 0:00:02]} gxh4 {[%emt 0:00:03]} 53. gxh4 {[%emt 0:00:01]} Kg7 {[%emt 0:00:03]} 54. Kd5 {[%emt 0:00:01]} Kf7 {[%emt 0:00:00]} 55. Kc6 {[%emt 0:00:02]} Ke7 {[%emt 0:00:01]} 56. Kb7 {[%emt 0:00:01]} Bf2 {[%emt 0:00:01]} 57. a7 {[%emt 0:00:02]} Bxa7 {[%emt 0:00:00]} 58. Kxa7 {[%emt 0:00:00] KB-KPP} Kd6 {[%emt 0:00:01]} 59. Kb6 {[%emt 0:00:07]} Ke5 {[%emt 0:00:00]} 60. Bd3 {[%emt 0:00:06]} Kf4 {[%emt 0:00:01]} 61. Kc6 {[%emt 0:00:01]} Kg4 {[%emt 0:00:01]} 62. Kd6 {[%emt 0:00:01]} Kxh4 {[%emt 0:00:01]} 63. Ke6 {[%emt 0:00:01]} Kg5 {[%emt 0:00:01]} 64. Bf1 {[%emt 0:00:02]} h4 {[%emt 0:00:04]} 65. Bg2 {[%emt 0:00:02] Weighted Error Value: White=0.08 (flawless) /Black=0.22 (precise)} 1-0

[Event "AI Cup Div-2 2023"]
[Site "Online"]
[Date "2023.09.25"]
[Round "1.3"]
[White "Eljanov, Pavel"]
[Black "Sarana, Alexey"]
[Result "1-0"]
[ECO "A08"]
[WhiteElo "2695"]
[BlackElo "2693"]
[Annotator "TA"]
[PlyCount "79"]
[EventDate "2023.09.18"]
[EventType "k.o."]
[EventCountry "NET"]
[SourceTitle "playchess.com"]
[Source "ChessBase"]
[SourceQuality "1"]
[TimeControl "900+3"]

{[%evp 9,79,0,0,0,0,0,-4,-4,-1,-5,0,0,10,18,8,5,6,4,4,3,14,22,22,18,29,8,27,5,16,5,5,13,9,0,0,6,29,32,409,392,400,415,425,452,455,457,464,461,450,425,435,433,480,492,511,343,492,418,507,464,415,220,578,566,492,481,5300,5293,2287,1984,1519,1500]} 1. Nf3 {[%emt 0:00:03]} d5 {[%emt 0:00:05]} 2. g3 {[%emt 0:00:02]} Nf6 {[%emt 0:00:01]} 3. Bg2 {[%emt 0:00:00]} e6 {[%emt 0:00:01]} 4. O-O {[%emt 0:00:03]} Be7 {[%emt 0:00:00]} 5. d3 {[%emt 0:00:01]} c5 {[%emt 0:00:05]} 6. Bf4 {[%emt 0:00:10] A08: King's Indian Attack.} Nc6 {[%emt 0:00:05]} 7. a4 $5 {[%emt 0:00:11][%mdl 4] [#] Leaves trodden paths.} Bd6 $146 {[%emt 0:00:04]} ({Predecessor:} 7... h6 8. e4 O-O 9. e5 Nh7 10. Re1 b6 11. h4 Bb7 12. Nbd2 a6 13. Nf1 b5 {½-½ Andreikin,D (2735)-Anton Guijarro,D (2585) Wch Blitz Almaty 2022 (5)}) 8. Bxd6 {[%emt 0:00:02] The position is equal.} Qxd6 {[%emt 0:00:00]} 9. Na3 {[%emt 0:00:01]} O-O {[%emt 0:00:04]} 10. e4 {[%emt 0:00:06]} dxe4 {[%emt 0:00:05]} 11. dxe4 {[%emt 0:00:00]} Nxe4 {[%emt 0:00:00]} 12. Re1 {[%emt 0:00:21]} Rd8 {[%emt 0:00:02]} 13. Qxd6 {[%emt 0:00:43]} Nxd6 {[%emt 0:00:00]} 14. Rad1 {[%emt 0:00:25]} f6 {[%emt 0:00:03]} 15. Nd2 {[%emt 0:00:28]} e5 {[%emt 0:00:36]} 16. Bxc6 {[%emt 0:01:05]} bxc6 {[%emt 0:00:03]} 17. Ne4 {[%emt 0:00:04]} Nf7 {[%emt 0:00:09]} 18. Rxd8+ {[%emt 0:00:02]} ({Of course not} 18. Nxc5 Bg4 19. Rxd8+ Rxd8 $15) 18... Nxd8 {[%emt 0:00:00]} 19. Nxc5 {[%emt 0:00:03]} Ne6 {[%emt 0:00:16]} 20. Nxe6 {[%emt 0:00:49]} Bxe6 $11 {[%emt 0:00:00][%mdl 4096] Endgame KRB-KRN} 21. f4 {[%emt 0:00:15]} Rd8 {[%emt 0:03:35]} 22. fxe5 {[%emt 0:00:07]} Rd2 {[%emt 0:00:00]} 23. exf6 {[%emt 0:00:27][%mdl 64] Discovered Attack} Bd5 {[%emt 0:00:02][%mdl 8192] Black cannot hold the game after this.} (23... Bh3 $14) 24. Re7 $1 $18 {[%emt 0:00:42][%csl LRa7,LRg7]} gxf6 {[%emt 0:00:56]} 25. Rxa7 {[%emt 0:00:02]} Rg2+ {[%emt 0:00:00]} 26. Kf1 {[%emt 0:00:02]} Rxh2 {[%emt 0:00:00]} 27. a5 {[%emt 0:00:06][%cal Ba4a5,Ba5a6][%mdl 32]} Rh1+ {[%emt 0:01:12]} 28. Kf2 {[%emt 0:00:07]} Rh2+ {[%emt 0:00:00]} 29. Ke1 {[%emt 0:00:10]} Rh1+ {[%emt 0:00:15]} 30. Kd2 {[%emt 0:00:11]} Rh2+ {[%emt 0:00:00]} 31. Kc3 {[%emt 0:01:06]} Rg2 {[%emt 0:00:01]} 32. a6 {[%emt 0:00:31]} Rxg3+ {[%emt 0:00:02]} (32... c5 $142 33. Rc7 Rxg3+ 34. Kd2 Rg2+ 35. Ke3 Rg3+ 36. Kf2 Rg2+ 37. Kf1 Rg5) 33. Kd4 {[%emt 0:00:29]} h5 {[%emt 0:02:09]} 34. Kc5 {[%emt 0:01:44]} Rg5 {[%emt 0:00:58]} 35. Rb7 {[%emt 0:02:47]} (35. Rd7 $142) 35... Bg2+ $2 {[%emt 0:00:19]} (35... Bh1+ {is a better chance.} 36. Kb6 c5) 36. Kb6 {[%emt 0:00:02] a7 would be deadly. White is clearly winning.} c5 {[%emt 0:00:13][%cal Oh5h4] [#]} 37. Nc4 $1 {[%emt 0:00:02][%cal Oc4e3] Black must now prevent Ne3!} Rg7 {[%emt 0:02:26] [#]} (37... Rg6 $142 38. Rd7 f5+ 39. Ka5 (39. Kxc5 Rxa6 40. Rd8+ Kh7 $11) 39... f4) 38. Ne3 $1 {[%emt 0:00:08]} Be4 {[%emt 0:00:02] [#]} 39. c4 $1 {[%emt 0:00:06]} Rg1 {[%emt 0:01:29]} 40. Nd5 {[%emt 0:00:18] Weighted Error Value: White=0.18 (very precise) /Black=0.55} 1-0